[Event "Titled Tuesday Blitz March 29 Late 2022"]
[White "Prohorov, Olexandr"]
[Black "Gauri, Shankar"]
[WhiteFideId "14105578"]
[BlackFideId "5041350"]
[WhiteElo "1993"]
[BlackElo "2240"]
[Result "1-0"]
[Round "10"]
[TimeControl "180+1"]
[Date "2022.03.30"]
[WhiteClock "0:00:03"]
[BlackClock "0:00:02"]

1. Nf3 {[%clk 0:02:58]}  Nf6 {[%clk 0:03:00]} 2. c4 {[%clk 0:02:55]}  g6 {[%clk 0:03:00]} 3. Nc3 {[%clk 0:02:52]}  Bg7 {[%clk 0:03:00]} 4. d4 {[%clk 0:02:52]}  O-O {[%clk 0:03:00]} 5. g3 {[%clk 0:02:49]}  c6 {[%clk 0:02:59]} 6. Bg2 {[%clk 0:02:49]}  d6 {[%clk 0:02:59]} 7. O-O {[%clk 0:02:48]}  Bf5 {[%clk 0:02:59]} 8. Nh4 {[%clk 0:02:47]}  Be6 {[%clk 0:02:59]} 9. b3 {[%clk 0:02:44]}  d5 {[%clk 0:02:57]} 10. Rb1 {[%clk 0:02:13]}  Nbd7 {[%clk 0:02:51]} 11. f4 {[%clk 0:02:08]}  dxc4 {[%clk 0:02:34]} 12. f5 {[%clk 0:02:07]}  gxf5 {[%clk 0:02:33]} 13. bxc4 {[%clk 0:02:03]}  Bxc4 {[%clk 0:02:32]} 14. Nxf5 {[%clk 0:01:59]}  Nb6 {[%clk 0:02:29]} 15. Ba3 {[%clk 0:01:52]}  Re8 {[%clk 0:02:24]} 16. Qd2 {[%clk 0:01:52]}  Be6 {[%clk 0:01:48]} 17. Nxg7 {[%clk 0:01:38]}  Kxg7 {[%clk 0:01:49]} 18. Bc1 {[%clk 0:01:35]}  Kh8 {[%clk 0:01:45]} 19. Ne4 {[%clk 0:01:24]}  Nxe4 {[%clk 0:01:33]} 20. Bxe4 {[%clk 0:01:23]}  Bd5 {[%clk 0:01:33]} 21. Bxh7 {[%clk 0:01:12]}  Qd6 {[%clk 0:01:27]} 22. Bc2 {[%clk 0:01:04]}  f6 {[%clk 0:01:20]} 23. e4 {[%clk 0:01:04]}  Bf7 {[%clk 0:01:18]} 24. Qh6+ {[%clk 0:01:00]}  Kg8 {[%clk 0:01:19]} 25. Rf5 {[%clk 0:00:43]}  Nc4 {[%clk 0:00:38]} 26. Kh1 {[%clk 0:00:28]}  Qxd4 {[%clk 0:00:19]} 27. Rf4 {[%clk 0:00:17]}  f5 {[%clk 0:00:04]} 28. Rxf5 {[%clk 0:00:17]}  Qg7 {[%clk 0:00:01]} 29. Rg5 {[%clk 0:00:09]}  Qxg5 {[%clk 0:00:02]} 30. Qxg5+ {[%clk 0:00:10]}  Kh8 {[%clk 0:00:01]} 31. Qh6+ {[%clk 0:00:07]}  Kg8 {[%clk 0:00:02]} 32. e5 {[%clk 0:00:06]}  Nxe5 {[%clk 0:00:01]} 33. Bh7+ {[%clk 0:00:04]}  Kh8 {[%clk 0:00:02]} 34. Bb2 {[%clk 0:00:03]} 1-0


[Site "https://www.chess.com"]

[Event "Titled Tuesday Blitz March 29 Late 2022"]
[White "Rasulov, Vugar"]
[Black "Bortnyk, Olexandr"]
[WhiteFideId "13402390"]
[BlackFideId "14120828"]
[WhiteElo "2560"]
[BlackElo "2723"]
[Result "1/2-1/2"]
[Round "10"]
[TimeControl "180+1"]
[Date "2022.03.29"]
[WhiteClock "0:00:10"]
[BlackClock "0:00:06"]

1. d4 {[%clk 0:03:00]}  d6 {[%clk 0:03:00]} 2. Nf3 {[%clk 0:03:00]}  f5 {[%clk 0:02:59]} 3. g3 {[%clk 0:02:59]}  Nf6 {[%clk 0:02:59]} 4. Bg2 {[%clk 0:02:59]}  g6 {[%clk 0:03:00]} 5. O-O {[%clk 0:03:00]}  Bg7 {[%clk 0:03:00]} 6. c4 {[%clk 0:03:00]}  O-O {[%clk 0:02:59]} 7. b4 {[%clk 0:03:01]}  Ne4 {[%clk 0:02:27]} 8. Bb2 {[%clk 0:03:01]}  Nd7 {[%clk 0:02:28]} 9. Qb3 {[%clk 0:02:54]}  e6 {[%clk 0:02:21]} 10. Nc3 {[%clk 0:02:48]}  Ndf6 {[%clk 0:02:18]} 11. Rad1 {[%clk 0:02:48]}  Bd7 {[%clk 0:02:16]} 12. Nxe4 {[%clk 0:02:30]}  Nxe4 {[%clk 0:02:15]} 13. Nd2 {[%clk 0:02:31]}  Nxd2 {[%clk 0:02:01]} 14. Rxd2 {[%clk 0:02:32]}  a5 {[%clk 0:02:01]} 15. b5 {[%clk 0:02:25]}  a4 {[%clk 0:01:51]} 16. Qc2 {[%clk 0:02:24]}  Ra7 {[%clk 0:01:41]} 17. Bc3 {[%clk 0:02:15]}  g5 {[%clk 0:01:12]} 18. Rb1 {[%clk 0:02:07]}  Be8 {[%clk 0:01:09]} 19. c5 {[%clk 0:02:02]}  d5 {[%clk 0:01:08]} 20. b6 {[%clk 0:02:02]}  cxb6 {[%clk 0:01:07]} 21. Rxb6 {[%clk 0:02:01]}  Bc6 {[%clk 0:01:04]} 22. Qd3 {[%clk 0:01:54]}  Ra8 {[%clk 0:00:58]} 23. Rdb2 {[%clk 0:01:53]}  Rf7 {[%clk 0:00:46]} 24. e3 {[%clk 0:01:50]}  Qf6 {[%clk 0:00:44]} 25. f4 {[%clk 0:01:31]}  gxf4 {[%clk 0:00:41]} 26. exf4 {[%clk 0:01:32]}  h5 {[%clk 0:00:38]} 27. Re2 {[%clk 0:01:29]}  h4 {[%clk 0:00:36]} 28. Rb1 {[%clk 0:01:29]}  hxg3 {[%clk 0:00:36]} 29. hxg3 {[%clk 0:01:30]}  a3 {[%clk 0:00:32]} 30. Rbe1 {[%clk 0:01:29]}  Re7 {[%clk 0:00:29]} 31. Bf3 {[%clk 0:01:24]}  Ra4 {[%clk 0:00:29]} 32. Kf2 {[%clk 0:01:22]}  Rc4 {[%clk 0:00:22]} 33. Ba1 {[%clk 0:01:22]}  Kf8 {[%clk 0:00:15]} 34. Kg2 {[%clk 0:01:21]}  Ra4 {[%clk 0:00:09]} 35. Re3 {[%clk 0:01:16]}  Kf7 {[%clk 0:00:08]} 36. Qe2 {[%clk 0:01:10]}  Rb4 {[%clk 0:00:05]} 37. Rxa3 {[%clk 0:01:00]}  Bb5 {[%clk 0:00:02]} 38. Qd2 {[%clk 0:00:59]}  Ra4 {[%clk 0:00:02]} 39. Rxa4 {[%clk 0:00:59]}  Bxa4 {[%clk 0:00:02]} 40. Bc3 {[%clk 0:00:53]}  Bc6 {[%clk 0:00:03]} 41. Qd3 {[%clk 0:00:51]}  Kg8 {[%clk 0:00:03]} 42. Qe3 {[%clk 0:00:48]}  Re8 {[%clk 0:00:03]} 43. a3 {[%clk 0:00:44]}  Re7 {[%clk 0:00:03]} 44. Bd1 {[%clk 0:00:40]}  Qg6 {[%clk 0:00:03]} 45. a4 {[%clk 0:00:39]}  Kf7 {[%clk 0:00:03]} 46. a5 {[%clk 0:00:39]}  Re8 {[%clk 0:00:03]} 47. Rh1 {[%clk 0:00:38]}  Rh8 {[%clk 0:00:03]} 48. Rxh8 {[%clk 0:00:38]}  Bxh8 {[%clk 0:00:04]} 49. Qf3 {[%clk 0:00:34]}  Bf6 {[%clk 0:00:03]} 50. Qh5 {[%clk 0:00:34]}  Qxh5 {[%clk 0:00:03]} 51. Bxh5+ {[%clk 0:00:35]}  Ke7 {[%clk 0:00:03]} 52. Be2 {[%clk 0:00:36]}  Kd7 {[%clk 0:00:03]} 53. Kf3 {[%clk 0:00:34]}  Ba4 {[%clk 0:00:03]} 54. g4 {[%clk 0:00:33]}  fxg4+ {[%clk 0:00:03]} 55. Kxg4 {[%clk 0:00:34]}  Bc2 {[%clk 0:00:03]} 56. Kh5 {[%clk 0:00:33]}  Bd8 {[%clk 0:00:03]} 57. Kh6 {[%clk 0:00:29]}  Bc7 {[%clk 0:00:03]} 58. Bd2 {[%clk 0:00:27]}  Ke7 {[%clk 0:00:02]} 59. Kg7 {[%clk 0:00:27]}  Bf5 {[%clk 0:00:02]} 60. a6 {[%clk 0:00:24]}  bxa6 {[%clk 0:00:03]} 61. Bxa6 {[%clk 0:00:25]}  Bc2 {[%clk 0:00:04]} 62. Be2 {[%clk 0:00:24]}  Ba4 {[%clk 0:00:03]} 63. Bg4 {[%clk 0:00:23]}  Bc2 {[%clk 0:00:04]} 64. Bh3 {[%clk 0:00:20]}  Bd3 {[%clk 0:00:03]} 65. c6 {[%clk 0:00:17]}  Bd6 {[%clk 0:00:03]} 66. Bg4 {[%clk 0:00:15]}  Bb5 {[%clk 0:00:03]} 67. c7 {[%clk 0:00:13]}  Bxc7 {[%clk 0:00:03]} 68. Bb4+ {[%clk 0:00:14]}  Bd6 {[%clk 0:00:02]} 69. Bxd6+ {[%clk 0:00:15]}  Kxd6 {[%clk 0:00:03]} 70. Kf6 {[%clk 0:00:15]}  Bd7 {[%clk 0:00:03]} 71. Bh3 {[%clk 0:00:15]}  Bc8 {[%clk 0:00:04]} 72. Bg4 {[%clk 0:00:16]}  Bd7 {[%clk 0:00:04]} 73. Bh5 {[%clk 0:00:17]}  Bc8 {[%clk 0:00:04]} 74. Be8 {[%clk 0:00:17]}  Bb7 {[%clk 0:00:04]} 75. Bb5 {[%clk 0:00:16]}  Bc8 {[%clk 0:00:05]} 76. Ba4 {[%clk 0:00:15]}  Ba6 {[%clk 0:00:05]} 77. Be8 {[%clk 0:00:15]}  Bd3 {[%clk 0:00:05]} 78. Bf7 {[%clk 0:00:13]}  Bf5 {[%clk 0:00:05]} 79. Bg8 {[%clk 0:00:14]}  Bg4 {[%clk 0:00:05]} 80. Bh7 {[%clk 0:00:15]}  Bh3 {[%clk 0:00:06]} 81. Bg6 {[%clk 0:00:14]}  Bg4 {[%clk 0:00:06]} 82. Kg5 {[%clk 0:00:15]}  Bh3 {[%clk 0:00:06]} 83. Bh5 {[%clk 0:00:15]}  Ke7 {[%clk 0:00:06]} 84. Bf3 {[%clk 0:00:14]}  Bf1 {[%clk 0:00:05]} 85. Bd1 {[%clk 0:00:12]}  Bd3 {[%clk 0:00:05]} 86. Bg4 {[%clk 0:00:12]}  Be4 {[%clk 0:00:05]} 87. Be2 {[%clk 0:00:12]}  Bf5 {[%clk 0:00:05]} 88. Bf3 {[%clk 0:00:11]}  Bd3 {[%clk 0:00:05]} 89. Bg2 {[%clk 0:00:11]}  Bc2 {[%clk 0:00:05]} 90. Bf3 {[%clk 0:00:12]}  Bd3 {[%clk 0:00:06]} 91. Bg4 {[%clk 0:00:12]}  Be4 {[%clk 0:00:06]} 92. Be2 {[%clk 0:00:10]}  Bc2 {[%clk 0:00:05]} 93. Bf3 {[%clk 0:00:10]}  Bd3 {[%clk 0:00:06]} 1/2-1/2


[Site "https://www.chess.com"]

[Event "Titled Tuesday Blitz March 29 Late 2022"]
[White "Reprintsev, Alexander"]
[Black "Dimakiling, Oliver"]
[WhiteFideId "14100541"]
[BlackFideId "5202248"]
[WhiteElo "2108"]
[BlackElo "2426"]
[Result "0-1"]
[Round "10"]
[TimeControl "180+1"]
[Date "2022.03.29"]
[WhiteClock "0:00:20"]
[BlackClock "0:00:11"]

1. e4 {[%clk 0:03:00]}  g6 {[%clk 0:02:59]} 2. d4 {[%clk 0:03:00]}  Bg7 {[%clk 0:02:59]} 3. Nc3 {[%clk 0:03:00]}  d6 {[%clk 0:03:00]} 4. h4 {[%clk 0:03:00]}  h5 {[%clk 0:02:59]} 5. Nf3 {[%clk 0:02:59]}  Bg4 {[%clk 0:02:58]} 6. Be2 {[%clk 0:03:00]}  Bxf3 {[%clk 0:02:57]} 7. gxf3 {[%clk 0:02:59]}  Nc6 {[%clk 0:02:57]} 8. Be3 {[%clk 0:02:59]}  e5 {[%clk 0:02:57]} 9. Bb5 {[%clk 0:02:58]}  a6 {[%clk 0:02:53]} 10. Bxc6+ {[%clk 0:02:58]}  bxc6 {[%clk 0:02:53]} 11. Qd2 {[%clk 0:02:58]}  exd4 {[%clk 0:02:45]} 12. Bxd4 {[%clk 0:02:58]}  Bxd4 {[%clk 0:02:45]} 13. Qxd4 {[%clk 0:02:58]}  Qf6 {[%clk 0:02:45]} 14. Qc4 {[%clk 0:02:47]}  Ne7 {[%clk 0:02:41]} 15. O-O-O {[%clk 0:02:42]}  Qxf3 {[%clk 0:02:37]} 16. e5 {[%clk 0:02:31]}  d5 {[%clk 0:02:28]} 17. Qb4 {[%clk 0:02:27]}  Qf5 {[%clk 0:02:21]} 18. f4 {[%clk 0:02:24]}  Qe6 {[%clk 0:02:02]} 19. Ne2 {[%clk 0:02:23]}  Nf5 {[%clk 0:01:58]} 20. Rd3 {[%clk 0:02:21]}  Qe7 {[%clk 0:01:47]} 21. Qc3 {[%clk 0:02:20]}  Qe6 {[%clk 0:01:30]} 22. Qc5 {[%clk 0:02:17]}  Rb8 {[%clk 0:01:26]} 23. a4 {[%clk 0:02:06]}  Rb6 {[%clk 0:01:18]} 24. Rg1 {[%clk 0:01:48]}  Qe7 {[%clk 0:01:06]} 25. Qc3 {[%clk 0:01:45]}  Qb4 {[%clk 0:01:02]} 26. e6 {[%clk 0:01:36]}  Qxc3 {[%clk 0:01:01]} 27. exf7+ {[%clk 0:01:37]}  Kxf7 {[%clk 0:01:01]} 28. Rxc3 {[%clk 0:01:35]}  Re8 {[%clk 0:00:58]} 29. Kd2 {[%clk 0:01:22]}  Re4 {[%clk 0:00:50]} 30. b3 {[%clk 0:01:17]}  Nxh4 {[%clk 0:00:50]} 31. a5 {[%clk 0:01:09]}  Rb5 {[%clk 0:00:43]} 32. Rf1 {[%clk 0:01:04]}  c5 {[%clk 0:00:41]} 33. Ng3 {[%clk 0:01:01]}  Re6 {[%clk 0:00:32]} 34. f5 {[%clk 0:01:01]}  Rf6 {[%clk 0:00:32]} 35. fxg6+ {[%clk 0:01:00]}  Kxg6 {[%clk 0:00:31]} 36. Rg1 {[%clk 0:00:58]}  Nf3+ {[%clk 0:00:24]} 37. Rxf3 {[%clk 0:00:57]}  Rxf3 {[%clk 0:00:24]} 38. Ne4+ {[%clk 0:00:51]}  Kh6 {[%clk 0:00:22]} 39. Nc3 {[%clk 0:00:50]}  Rxa5 {[%clk 0:00:18]} 40. Nxd5 {[%clk 0:00:50]}  Ra2 {[%clk 0:00:17]} 41. Rg2 {[%clk 0:00:47]}  h4 {[%clk 0:00:17]} 42. Nc3 {[%clk 0:00:44]}  Ra1 {[%clk 0:00:16]} 43. Ne4 {[%clk 0:00:43]}  h3 {[%clk 0:00:16]} 44. Rh2 {[%clk 0:00:42]}  Rg1 {[%clk 0:00:16]} 45. Ke2 {[%clk 0:00:36]}  Rg2+ {[%clk 0:00:16]} 46. Kxf3 {[%clk 0:00:35]}  Rxh2 {[%clk 0:00:15]} 47. Kg3 {[%clk 0:00:31]}  Rxc2 {[%clk 0:00:15]} 48. Kxh3 {[%clk 0:00:32]}  c4 {[%clk 0:00:15]} 49. bxc4 {[%clk 0:00:23]}  Rxc4 {[%clk 0:00:15]} 50. Nf6 {[%clk 0:00:23]}  a5 {[%clk 0:00:13]} 51. Ng8+ {[%clk 0:00:22]}  Kg7 {[%clk 0:00:11]} 52. Ne7 {[%clk 0:00:22]}  a4 {[%clk 0:00:11]} 53. Nf5+ {[%clk 0:00:20]}  Kf6 {[%clk 0:00:11]} 54. Ne3 {[%clk 0:00:20]}  Rc3 {[%clk 0:00:11]} 0-1


[Site "https://www.chess.com"]

[Event "Titled Tuesday Blitz March 29 Late 2022"]
[White "Rosen, Eric"]
[Black "Pourkashiyan, Atousa"]
[WhiteFideId "2032562"]
[BlackFideId "12502014"]
[WhiteElo "2362"]
[BlackElo "2247"]
[Result "1-0"]
[Round "10"]
[TimeControl "180+1"]
[Date "2022.03.30"]
[WhiteClock "0:00:23"]
[BlackClock "0:00:11"]

1. d4 {[%clk 0:02:58]}  Nf6 {[%clk 0:02:57]} 2. Bf4 {[%clk 0:02:55]}  d5 {[%clk 0:02:55]} 3. e3 {[%clk 0:02:55]}  c5 {[%clk 0:02:54]} 4. Nf3 {[%clk 0:02:55]}  Nc6 {[%clk 0:02:54]} 5. Nbd2 {[%clk 0:02:55]}  Bf5 {[%clk 0:02:51]} 6. dxc5 {[%clk 0:02:55]}  e6 {[%clk 0:02:50]} 7. Nd4 {[%clk 0:02:55]}  Bxc5 {[%clk 0:02:48]} 8. Nxf5 {[%clk 0:02:55]}  exf5 {[%clk 0:02:48]} 9. Bd3 {[%clk 0:02:55]}  Ne4 {[%clk 0:02:45]} 10. c3 {[%clk 0:02:53]}  O-O {[%clk 0:02:44]} 11. O-O {[%clk 0:02:52]}  g6 {[%clk 0:02:36]} 12. Nb3 {[%clk 0:02:49]}  Bd6 {[%clk 0:02:33]} 13. Bxe4 {[%clk 0:02:44]}  fxe4 {[%clk 0:02:25]} 14. Qxd5 {[%clk 0:02:41]}  Bxf4 {[%clk 0:02:25]} 15. Qxd8 {[%clk 0:02:42]}  Bxh2+ {[%clk 0:02:25]} 16. Kxh2 {[%clk 0:02:41]}  Rfxd8 {[%clk 0:02:25]} 17. Rad1 {[%clk 0:02:37]}  b6 {[%clk 0:02:16]} 18. Kg3 {[%clk 0:02:21]}  f5 {[%clk 0:02:12]} 19. Kf4 {[%clk 0:02:04]}  Kf7 {[%clk 0:02:12]} 20. g4 {[%clk 0:02:01]}  fxg4 {[%clk 0:02:03]} 21. Kxe4 {[%clk 0:01:42]}  h5 {[%clk 0:02:01]} 22. Nd4 {[%clk 0:01:38]}  Nxd4 {[%clk 0:02:00]} 23. cxd4 {[%clk 0:01:38]}  Kf6 {[%clk 0:01:51]} 24. Rc1 {[%clk 0:01:36]}  Rac8 {[%clk 0:01:49]} 25. a4 {[%clk 0:01:18]}  g5 {[%clk 0:01:45]} 26. Rh1 {[%clk 0:01:12]}  h4 {[%clk 0:01:41]} 27. Rhg1 {[%clk 0:01:09]}  h3 {[%clk 0:01:36]} 28. Rcf1 {[%clk 0:00:35]}  Re8+ {[%clk 0:00:33]} 29. Kd3 {[%clk 0:00:34]}  Kf5 {[%clk 0:00:34]} 30. f3 {[%clk 0:00:32]}  gxf3 {[%clk 0:00:14]} 31. Rxf3+ {[%clk 0:00:32]}  Kg6 {[%clk 0:00:14]} 32. Rxh3 {[%clk 0:00:33]}  Rcd8 {[%clk 0:00:13]} 33. Rhg3 {[%clk 0:00:30]}  Rd5 {[%clk 0:00:13]} 34. e4 {[%clk 0:00:29]}  Ra5 {[%clk 0:00:13]} 35. b3 {[%clk 0:00:27]}  Rg8 {[%clk 0:00:11]} 36. b4 {[%clk 0:00:23]}  Rxa4 {[%clk 0:00:11]} 37. Rxg5+ {[%clk 0:00:23]} 1-0


[Site "https://www.chess.com"]

[Event "Titled Tuesday Blitz March 29 Late 2022"]
[White "Sarana, Alexey"]
[Black "Indjic, Aleksandar"]
[WhiteFideId "24133795"]
[BlackFideId "911925"]
[WhiteElo "2666"]
[BlackElo "2616"]
[Result "1-0"]
[Round "10"]
[TimeControl "180+1"]
[Date "2022.03.29"]
[WhiteClock "0:00:15"]
[BlackClock "0:00:07"]

1. d4 {[%clk 0:01:14]}  d5 {[%clk 0:02:58]} 2. c4 {[%clk 0:01:15]}  e6 {[%clk 0:02:58]} 3. Nc3 {[%clk 0:01:15]}  a6 {[%clk 0:02:57]} 4. cxd5 {[%clk 0:01:15]}  exd5 {[%clk 0:02:58]} 5. Nf3 {[%clk 0:01:16]}  c6 {[%clk 0:02:56]} 6. Bf4 {[%clk 0:01:14]}  Bd6 {[%clk 0:02:55]} 7. Bxd6 {[%clk 0:01:14]}  Qxd6 {[%clk 0:02:55]} 8. e3 {[%clk 0:01:15]}  Ne7 {[%clk 0:02:53]} 9. Bd3 {[%clk 0:01:15]}  Bf5 {[%clk 0:02:52]} 10. O-O {[%clk 0:01:16]}  O-O {[%clk 0:02:50]} 11. Rb1 {[%clk 0:01:14]}  Nd7 {[%clk 0:02:49]} 12. h3 {[%clk 0:01:11]}  Bg6 {[%clk 0:02:47]} 13. Qc2 {[%clk 0:01:10]}  Bxd3 {[%clk 0:02:25]} 14. Qxd3 {[%clk 0:01:11]}  Qg6 {[%clk 0:02:24]} 15. Qxg6 {[%clk 0:01:10]}  hxg6 {[%clk 0:02:25]} 16. b3 {[%clk 0:01:10]}  Nf5 {[%clk 0:02:24]} 17. Rfc1 {[%clk 0:01:09]}  Nd6 {[%clk 0:02:23]} 18. Na4 {[%clk 0:01:07]}  Rfe8 {[%clk 0:02:23]} 19. Ne1 {[%clk 0:01:06]}  f6 {[%clk 0:02:22]} 20. h4 {[%clk 0:01:06]}  Kf7 {[%clk 0:02:20]} 21. g3 {[%clk 0:01:06]}  g5 {[%clk 0:02:16]} 22. hxg5 {[%clk 0:01:06]}  fxg5 {[%clk 0:02:17]} 23. Nd3 {[%clk 0:01:05]}  Kf6 {[%clk 0:02:14]} 24. Nac5 {[%clk 0:01:04]}  Nxc5 {[%clk 0:02:13]} 25. Nxc5 {[%clk 0:01:05]}  Re7 {[%clk 0:02:11]} 26. Kg2 {[%clk 0:01:05]}  Ne4 {[%clk 0:02:10]} 27. Nd3 {[%clk 0:01:01]}  Rf8 {[%clk 0:02:07]} 28. Rh1 {[%clk 0:01:00]}  Ke6 {[%clk 0:01:51]} 29. f3 {[%clk 0:00:39]}  Nd2 {[%clk 0:01:48]} 30. Rb2 {[%clk 0:00:28]}  Nxf3 {[%clk 0:01:47]} 31. Rf2 {[%clk 0:00:28]}  g4 {[%clk 0:01:47]} 32. Rh5 {[%clk 0:00:28]}  Ref7 {[%clk 0:01:37]} 33. Re2 {[%clk 0:00:26]}  Kd6 {[%clk 0:01:35]} 34. Rh7 {[%clk 0:00:15]}  b6 {[%clk 0:01:33]} 35. b4 {[%clk 0:00:15]}  a5 {[%clk 0:01:09]} 36. bxa5 {[%clk 0:00:16]}  bxa5 {[%clk 0:01:09]} 37. Rh1 {[%clk 0:00:16]}  Rb8 {[%clk 0:01:08]} 38. Nf2 {[%clk 0:00:16]}  Re8 {[%clk 0:01:02]} 39. Rd1 {[%clk 0:00:15]}  Ng5 {[%clk 0:00:59]} 40. Nxg4 {[%clk 0:00:15]}  Ne4 {[%clk 0:00:59]} 41. Ne5 {[%clk 0:00:15]}  Rf6 {[%clk 0:00:53]} 42. Rc1 {[%clk 0:00:15]}  c5 {[%clk 0:00:53]} 43. Rb2 {[%clk 0:00:15]}  c4 {[%clk 0:00:47]} 44. Rcb1 {[%clk 0:00:14]}  Ke6 {[%clk 0:00:21]} 45. g4 {[%clk 0:00:14]}  Ref8 {[%clk 0:00:20]} 46. Rb6+ {[%clk 0:00:14]}  Nd6 {[%clk 0:00:20]} 47. Rc6 {[%clk 0:00:12]}  Rf2+ {[%clk 0:00:14]} 48. Kg3 {[%clk 0:00:12]}  Rxa2 {[%clk 0:00:14]} 49. Rbb6 {[%clk 0:00:11]}  Rd8 {[%clk 0:00:15]} 50. Rc7 {[%clk 0:00:10]}  g5 {[%clk 0:00:12]} 51. Rg7 {[%clk 0:00:10]}  Kf6 {[%clk 0:00:11]} 52. Rg6+ {[%clk 0:00:10]}  Ke7 {[%clk 0:00:11]} 53. Nc6+ {[%clk 0:00:10]}  Kf7 {[%clk 0:00:10]} 54. Nxd8+ {[%clk 0:00:08]}  Kxg6 {[%clk 0:00:09]} 55. Rxd6+ {[%clk 0:00:09]}  Kg7 {[%clk 0:00:09]} 56. Rxd5 {[%clk 0:00:09]}  c3 {[%clk 0:00:08]} 57. Rc5 {[%clk 0:00:10]}  c2 {[%clk 0:00:09]} 58. Nc6 {[%clk 0:00:10]}  a4 {[%clk 0:00:09]} 59. Nb4 {[%clk 0:00:10]}  c1=Q {[%clk 0:00:07]} 60. Rxc1 {[%clk 0:00:10]}  Ra3 {[%clk 0:00:07]} 61. Kf3 {[%clk 0:00:10]}  Rb3 {[%clk 0:00:08]} 62. Rc7+ {[%clk 0:00:10]}  Kg6 {[%clk 0:00:07]} 63. Nd5 {[%clk 0:00:10]}  a3 {[%clk 0:00:07]} 64. Rc6+ {[%clk 0:00:11]}  Kg7 {[%clk 0:00:08]} 65. Ra6 {[%clk 0:00:12]}  Kf7 {[%clk 0:00:08]} 66. Ke4 {[%clk 0:00:11]}  Kg7 {[%clk 0:00:08]} 67. Ne7 {[%clk 0:00:11]}  Kf7 {[%clk 0:00:08]} 68. Nf5 {[%clk 0:00:12]}  Rc3 {[%clk 0:00:08]} 69. Ke5 {[%clk 0:00:12]}  Rb3 {[%clk 0:00:07]} 70. e4 {[%clk 0:00:12]}  Rf3 {[%clk 0:00:07]} 71. d5 {[%clk 0:00:13]}  Rd3 {[%clk 0:00:07]} 72. Ra7+ {[%clk 0:00:13]}  Ke8 {[%clk 0:00:07]} 73. Ke6 {[%clk 0:00:12]}  Kd8 {[%clk 0:00:07]} 74. d6 {[%clk 0:00:13]}  Kc8 {[%clk 0:00:07]} 75. Ne7+ {[%clk 0:00:14]}  Kb8 {[%clk 0:00:07]} 76. Nc6+ {[%clk 0:00:15]}  Kc8 {[%clk 0:00:07]} 77. Rc7# {[%clk 0:00:15]} 1-0


[Site "https://www.chess.com"]

[Event "Titled Tuesday Blitz March 29 Late 2022"]
[White "Sliwicki, Damian"]
[Black "Chernobay, Artem"]
[WhiteFideId "1127128"]
[BlackFideId "4167406"]
[WhiteElo "2067"]
[BlackElo "2473"]
[Result "0-1"]
[Round "10"]
[TimeControl "180+1"]
[Date "2022.03.30"]
[WhiteClock "0:00:07"]
[BlackClock "0:00:04"]

1. e4 {[%clk 0:03:00]}  c5 {[%clk 0:02:58]} 2. Nf3 {[%clk 0:02:53]}  d6 {[%clk 0:02:58]} 3. d4 {[%clk 0:02:46]}  cxd4 {[%clk 0:02:58]} 4. Qxd4 {[%clk 0:02:47]}  Nc6 {[%clk 0:02:55]} 5. Bb5 {[%clk 0:02:46]}  Bd7 {[%clk 0:02:55]} 6. Bxc6 {[%clk 0:02:46]}  Bxc6 {[%clk 0:02:56]} 7. Nc3 {[%clk 0:02:46]}  Nf6 {[%clk 0:02:56]} 8. Bg5 {[%clk 0:02:47]}  e6 {[%clk 0:02:57]} 9. O-O-O {[%clk 0:02:46]}  Be7 {[%clk 0:02:57]} 10. Rhe1 {[%clk 0:02:47]}  O-O {[%clk 0:02:57]} 11. Kb1 {[%clk 0:02:47]}  h6 {[%clk 0:02:44]} 12. h4 {[%clk 0:02:43]}  hxg5 {[%clk 0:02:09]} 13. hxg5 {[%clk 0:02:44]}  Nh7 {[%clk 0:02:03]} 14. Rh1 {[%clk 0:02:28]}  Bxg5 {[%clk 0:02:00]} 15. g4 {[%clk 0:02:14]}  Qf6 {[%clk 0:01:54]} 16. Qd3 {[%clk 0:02:13]}  Bf4 {[%clk 0:01:46]} 17. Rdg1 {[%clk 0:01:51]}  Ng5 {[%clk 0:01:36]} 18. Nxg5 {[%clk 0:01:44]}  Qxg5 {[%clk 0:01:35]} 19. Rh5 {[%clk 0:01:29]}  Qg6 {[%clk 0:01:32]} 20. Ne2 {[%clk 0:00:57]}  Bxe4 {[%clk 0:01:16]} 21. Qh3 {[%clk 0:00:58]}  Bxc2+ {[%clk 0:01:05]} 22. Ka1 {[%clk 0:00:58]}  Bh6 {[%clk 0:00:59]} 23. g5 {[%clk 0:00:58]}  Bf5 {[%clk 0:00:39]} 24. Qh4 {[%clk 0:00:47]}  Rfc8 {[%clk 0:00:34]} 25. a3 {[%clk 0:00:40]}  Rc4 {[%clk 0:00:16]} 26. f4 {[%clk 0:00:27]}  Kf8 {[%clk 0:00:05]} 27. gxh6 {[%clk 0:00:25]}  Qf6 {[%clk 0:00:05]} 28. hxg7+ {[%clk 0:00:20]}  Ke7 {[%clk 0:00:05]} 29. Qxf6+ {[%clk 0:00:18]}  Kxf6 {[%clk 0:00:06]} 30. Rh8 {[%clk 0:00:18]}  Rcc8 {[%clk 0:00:02]} 31. Rxc8 {[%clk 0:00:18]}  Rxc8 {[%clk 0:00:02]} 32. g8=Q {[%clk 0:00:18]}  Rxg8 {[%clk 0:00:03]} 33. Rxg8 {[%clk 0:00:19]}  d5 {[%clk 0:00:03]} 34. Nd4 {[%clk 0:00:17]}  Bd3 {[%clk 0:00:03]} 35. Nf3 {[%clk 0:00:17]}  Kf5 {[%clk 0:00:03]} 36. Ne5 {[%clk 0:00:18]}  Be4 {[%clk 0:00:03]} 37. Rg7 {[%clk 0:00:18]}  f6 {[%clk 0:00:03]} 38. Nd7 {[%clk 0:00:15]}  Kxf4 {[%clk 0:00:03]} 39. Nxf6 {[%clk 0:00:15]}  Bf5 {[%clk 0:00:03]} 40. Rxb7 {[%clk 0:00:14]}  d4 {[%clk 0:00:04]} 41. Rxa7 {[%clk 0:00:13]}  d3 {[%clk 0:00:04]} 42. Rd7 {[%clk 0:00:13]}  Ke3 {[%clk 0:00:04]} 43. b4 {[%clk 0:00:12]}  d2 {[%clk 0:00:04]} 44. b5 {[%clk 0:00:10]}  Bd3 {[%clk 0:00:04]} 45. Ng4+ {[%clk 0:00:08]}  Ke2 {[%clk 0:00:05]} 46. Nf2 {[%clk 0:00:08]}  Bxb5 {[%clk 0:00:04]} 47. Kb2 {[%clk 0:00:07]}  Bxd7 {[%clk 0:00:04]} 48. Kc3 {[%clk 0:00:07]}  e5 {[%clk 0:00:03]} 49. a4 {[%clk 0:00:06]}  Bxa4 {[%clk 0:00:03]} 50. Kb4 {[%clk 0:00:06]}  Kxf2 {[%clk 0:00:03]} 51. Kxa4 {[%clk 0:00:06]}  d1=Q+ {[%clk 0:00:04]} 52. Kb5 {[%clk 0:00:07]}  Qd2 {[%clk 0:00:04]} 0-1


[Site "https://www.chess.com"]